{"text_format":"3","workbook":"xlsx","n_sheets":2,"sheets":["Súpis zariadení","Nastavenie"],"not_rendered":{"defined_names":4},"read":"whole","date_system":"1900"}

{"sheet":"Súpis zariadení","index":0,"n_rows":35,"n_cols":6,"rows_kept":35,"merged":[[0,1,2,2],[0,4,0,5]]}
[]
[{"$nulls":4},"Zvýrazniť položky staršie ako:"]
[{"$nulls":4},4]
[]
[null,"ID ZARIADENIA","NÁZOV POLOŽKY","PRIRADENÉ ZAMESTNANCOVI","DÁTUM VYDANIA","VEK ZARIADENIA"]
[null,"POLOŽKA0001","stolička","Zamestnanec 1",{"$f":"TODAY()-25","v":"2012-10-26"},{"$f":"IF(tblZoznamVybavenia[[#This Row],[DÁTUM VYDANIA]]<>\"\",TODAY()-tblZoznamVybavenia[[#This Row],[DÁTUM VYDANIA]],\"\")","v":{"v":25,"d":"25 dní"}}]
[null,"POLOŽKA0002","laserová tlačiareň","Zamestnanec 2",{"$f":"TODAY()-479","v":"2011-07-30"},{"$f":"IF(tblZoznamVybavenia[[#This Row],[DÁTUM VYDANIA]]<>\"\",TODAY()-tblZoznamVybavenia[[#This Row],[DÁTUM VYDANIA]],\"\")","v":{"v":479,"d":"479 dní"}}]
[null,"POLOŽKA0003","skener","Zamestnanec 3",{"$f":"TODAY()-177","v":"2012-05-27"},{"$f":"IF(tblZoznamVybavenia[[#This Row],[DÁTUM VYDANIA]]<>\"\",TODAY()-tblZoznamVybavenia[[#This Row],[DÁTUM VYDANIA]],\"\")","v":{"v":177,"d":"177 dní"}}]
[null,"POLOŽKA0004","laserová tlačiareň","Zamestnanec 7",{"$f":"TODAY()-18","v":"2012-11-02"},{"$f":"IF(tblZoznamVybavenia[[#This Row],[DÁTUM VYDANIA]]<>\"\",TODAY()-tblZoznamVybavenia[[#This Row],[DÁTUM VYDANIA]],\"\")","v":{"v":18,"d":"18 dní"}}]
[null,"POLOŽKA0005","kávovar","Zamestnanec 20",{"$f":"TODAY()-227","v":"2012-04-07"},{"$f":"IF(tblZoznamVybavenia[[#This Row],[DÁTUM VYDANIA]]<>\"\",TODAY()-tblZoznamVybavenia[[#This Row],[DÁTUM VYDANIA]],\"\")","v":{"v":227,"d":"227 dní"}}]
[null,"POLOŽKA0006","skener","Zamestnanec 14",{"$f":"TODAY()-50","v":"2012-10-01"},{"$f":"IF(tblZoznamVybavenia[[#This Row],[DÁTUM VYDANIA]]<>\"\",TODAY()-tblZoznamVybavenia[[#This Row],[DÁTUM VYDANIA]],\"\")","v":{"v":50,"d":"50 dní"}}]
[null,"POLOŽKA0007","stôl","Zamestnanec 4",{"$f":"TODAY()-120","v":"2012-07-23"},{"$f":"IF(tblZoznamVybavenia[[#This Row],[DÁTUM VYDANIA]]<>\"\",TODAY()-tblZoznamVybavenia[[#This Row],[DÁTUM VYDANIA]],\"\")","v":{"v":120,"d":"120 dní"}}]
[null,"POLOŽKA0008","kopírovací stroj","Zamestnanec 12",{"$f":"TODAY()-499","v":"2011-07-10"},{"$f":"IF(tblZoznamVybavenia[[#This Row],[DÁTUM VYDANIA]]<>\"\",TODAY()-tblZoznamVybavenia[[#This Row],[DÁTUM VYDANIA]],\"\")","v":{"v":499,"d":"499 dní"}}]
[null,"POLOŽKA0009","dodatočný monitor","Zamestnanec 8",{"$f":"TODAY()-30","v":"2012-10-21"},{"$f":"IF(tblZoznamVybavenia[[#This Row],[DÁTUM VYDANIA]]<>\"\",TODAY()-tblZoznamVybavenia[[#This Row],[DÁTUM VYDANIA]],\"\")","v":{"v":30,"d":"30 dní"}}]
[null,"POLOŽKA0010","tabuľa","Zamestnanec 19",{"$f":"TODAY()-50","v":"2012-10-01"},{"$f":"IF(tblZoznamVybavenia[[#This Row],[DÁTUM VYDANIA]]<>\"\",TODAY()-tblZoznamVybavenia[[#This Row],[DÁTUM VYDANIA]],\"\")","v":{"v":50,"d":"50 dní"}}]
[null,"POLOŽKA0011","kopírovací stroj","Zamestnanec 12",{"$f":"TODAY()-450","v":"2011-08-28"},{"$f":"IF(tblZoznamVybavenia[[#This Row],[DÁTUM VYDANIA]]<>\"\",TODAY()-tblZoznamVybavenia[[#This Row],[DÁTUM VYDANIA]],\"\")","v":{"v":450,"d":"450 dní"}}]
[null,"POLOŽKA0012","kancelárske potreby","Zamestnanec 18",{"$f":"TODAY()-420","v":"2011-09-27"},{"$f":"IF(tblZoznamVybavenia[[#This Row],[DÁTUM VYDANIA]]<>\"\",TODAY()-tblZoznamVybavenia[[#This Row],[DÁTUM VYDANIA]],\"\")","v":{"v":420,"d":"420 dní"}}]
[null,"POLOŽKA0013","dodatočný monitor","Zamestnanec 8",{"$f":"TODAY()-250","v":"2012-03-15"},{"$f":"IF(tblZoznamVybavenia[[#This Row],[DÁTUM VYDANIA]]<>\"\",TODAY()-tblZoznamVybavenia[[#This Row],[DÁTUM VYDANIA]],\"\")","v":{"v":250,"d":"250 dní"}}]
[null,"POLOŽKA0014","kávovar","Zamestnanec 9",{"$f":"TODAY()-45","v":"2012-10-06"},{"$f":"IF(tblZoznamVybavenia[[#This Row],[DÁTUM VYDANIA]]<>\"\",TODAY()-tblZoznamVybavenia[[#This Row],[DÁTUM VYDANIA]],\"\")","v":{"v":45,"d":"45 dní"}}]
[null,"POLOŽKA0015","kancelárske potreby","Zamestnanec 13",{"$f":"TODAY()-502","v":"2011-07-07"},{"$f":"IF(tblZoznamVybavenia[[#This Row],[DÁTUM VYDANIA]]<>\"\",TODAY()-tblZoznamVybavenia[[#This Row],[DÁTUM VYDANIA]],\"\")","v":{"v":502,"d":"502 dní"}}]
[null,"POLOŽKA0016","skener","Zamestnanec 1",{"$f":"TODAY()-350","v":"2011-12-06"},{"$f":"IF(tblZoznamVybavenia[[#This Row],[DÁTUM VYDANIA]]<>\"\",TODAY()-tblZoznamVybavenia[[#This Row],[DÁTUM VYDANIA]],\"\")","v":{"v":350,"d":"350 dní"}}]
[null,"POLOŽKA0017","kopírovací stroj","Zamestnanec 19",{"$f":"TODAY()-125","v":"2012-07-18"},{"$f":"IF(tblZoznamVybavenia[[#This Row],[DÁTUM VYDANIA]]<>\"\",TODAY()-tblZoznamVybavenia[[#This Row],[DÁTUM VYDANIA]],\"\")","v":{"v":125,"d":"125 dní"}}]
[null,"POLOŽKA0018","tabuľa","Zamestnanec 15",{"$f":"TODAY()-90","v":"2012-08-22"},{"$f":"IF(tblZoznamVybavenia[[#This Row],[DÁTUM VYDANIA]]<>\"\",TODAY()-tblZoznamVybavenia[[#This Row],[DÁTUM VYDANIA]],\"\")","v":{"v":90,"d":"90 dní"}}]
[null,"POLOŽKA0019","stolička","Zamestnanec 16",{"$f":"TODAY()-730","v":"2010-11-21"},{"$f":"IF(tblZoznamVybavenia[[#This Row],[DÁTUM VYDANIA]]<>\"\",TODAY()-tblZoznamVybavenia[[#This Row],[DÁTUM VYDANIA]],\"\")","v":{"v":730,"d":"730 dní"}}]
[null,"POLOŽKA0020","utierka na prach (1 súprava)","Zamestnanec 3",{"$f":"TODAY()-540","v":"2011-05-30"},{"$f":"IF(tblZoznamVybavenia[[#This Row],[DÁTUM VYDANIA]]<>\"\",TODAY()-tblZoznamVybavenia[[#This Row],[DÁTUM VYDANIA]],\"\")","v":{"v":540,"d":"540 dní"}}]
[null,"POLOŽKA0021","laserová tlačiareň","Zamestnanec 7",{"$f":"TODAY()-18","v":"2012-11-02"},{"$f":"IF(tblZoznamVybavenia[[#This Row],[DÁTUM VYDANIA]]<>\"\",TODAY()-tblZoznamVybavenia[[#This Row],[DÁTUM VYDANIA]],\"\")","v":{"v":18,"d":"18 dní"}}]
[null,"POLOŽKA0022","prenosný počítač","Zamestnanec 8",{"$f":"TODAY()-283","v":"2012-02-11"},{"$f":"IF(tblZoznamVybavenia[[#This Row],[DÁTUM VYDANIA]]<>\"\",TODAY()-tblZoznamVybavenia[[#This Row],[DÁTUM VYDANIA]],\"\")","v":{"v":283,"d":"283 dní"}}]
[null,"POLOŽKA0023","kancelárske potreby","Zamestnanec 9",{"$f":"TODAY()-479","v":"2011-07-30"},{"$f":"IF(tblZoznamVybavenia[[#This Row],[DÁTUM VYDANIA]]<>\"\",TODAY()-tblZoznamVybavenia[[#This Row],[DÁTUM VYDANIA]],\"\")","v":{"v":479,"d":"479 dní"}}]
[null,"POLOŽKA0024","laserová tlačiareň","Zamestnanec 19",{"$f":"TODAY()-355","v":"2011-12-01"},{"$f":"IF(tblZoznamVybavenia[[#This Row],[DÁTUM VYDANIA]]<>\"\",TODAY()-tblZoznamVybavenia[[#This Row],[DÁTUM VYDANIA]],\"\")","v":{"v":355,"d":"355 dní"}}]
[null,"POLOŽKA0025","stôl","Zamestnanec 7",{"$f":"TODAY()-28","v":"2012-10-23"},{"$f":"IF(tblZoznamVybavenia[[#This Row],[DÁTUM VYDANIA]]<>\"\",TODAY()-tblZoznamVybavenia[[#This Row],[DÁTUM VYDANIA]],\"\")","v":{"v":28,"d":"28 dní"}}]
[null,"POLOŽKA0026","tabuľa","Zamestnanec 8",{"$f":"TODAY()-28","v":"2012-10-23"},{"$f":"IF(tblZoznamVybavenia[[#This Row],[DÁTUM VYDANIA]]<>\"\",TODAY()-tblZoznamVybavenia[[#This Row],[DÁTUM VYDANIA]],\"\")","v":{"v":28,"d":"28 dní"}}]
[null,"POLOŽKA0027","prenosný počítač","Zamestnanec 19",{"$f":"TODAY()-736","v":"2010-11-15"},{"$f":"IF(tblZoznamVybavenia[[#This Row],[DÁTUM VYDANIA]]<>\"\",TODAY()-tblZoznamVybavenia[[#This Row],[DÁTUM VYDANIA]],\"\")","v":{"v":736,"d":"736 dní"}}]
[null,"POLOŽKA0028","stôl","Zamestnanec 12",{"$f":"TODAY()-68","v":"2012-09-13"},{"$f":"IF(tblZoznamVybavenia[[#This Row],[DÁTUM VYDANIA]]<>\"\",TODAY()-tblZoznamVybavenia[[#This Row],[DÁTUM VYDANIA]],\"\")","v":{"v":68,"d":"68 dní"}}]
[null,"POLOŽKA0029","skener","Zamestnanec 14",{"$f":"TODAY()-67","v":"2012-09-14"},{"$f":"IF(tblZoznamVybavenia[[#This Row],[DÁTUM VYDANIA]]<>\"\",TODAY()-tblZoznamVybavenia[[#This Row],[DÁTUM VYDANIA]],\"\")","v":{"v":67,"d":"67 dní"}}]
[null,"POLOŽKA0030","kávovar","Zamestnanec 3",{"$f":"TODAY()-149","v":"2012-06-24"},{"$f":"IF(tblZoznamVybavenia[[#This Row],[DÁTUM VYDANIA]]<>\"\",TODAY()-tblZoznamVybavenia[[#This Row],[DÁTUM VYDANIA]],\"\")","v":{"v":149,"d":"149 dní"}}]

{"sheet":"Nastavenie","index":1,"n_rows":23,"n_cols":4,"rows_kept":23}
[]
[]
[null,"ZAMESTNANCI",null,"POLOŽKY"]
[null,"Zamestnanec 1",null,"stolička"]
[null,"Zamestnanec 2",null,"kávovar"]
[null,"Zamestnanec 3",null,"kopírovací stroj"]
[null,"Zamestnanec 4",null,"stolný počítač"]
[null,"Zamestnanec 5",null,"utierka na prach (1 súprava)"]
[null,"Zamestnanec 6",null,"dodatočný monitor"]
[null,"Zamestnanec 7",null,"atramentová tlačiareň"]
[null,"Zamestnanec 8",null,"prenosný počítač"]
[null,"Zamestnanec 9",null,"laserová tlačiareň"]
[null,"Zamestnanec 10",null,"značkovače (balenie 3 kusy)"]
[null,"Zamestnanec 11",null,"skener"]
[null,"Zamestnanec 12",null,"kancelárske potreby"]
[null,"Zamestnanec 13",null,"stôl"]
[null,"Zamestnanec 14",null,"USB kľúč"]
[null,"Zamestnanec 15",null,"tabuľa"]
[null,"Zamestnanec 16"]
[null,"Zamestnanec 17"]
[null,"Zamestnanec 18"]
[null,"Zamestnanec 19"]
[null,"Zamestnanec 20"]